Cogmind - Beta 11 *** ADVENTURER MODE // 2023.02.06 @ 16:33:29 Player: ZarZap Result: Destroyed by X-67 Chaingunner with Heavy Machine Gun Performance ------------- Evolutions (4) 2000 Regions Visited (5) 1000 Robots Destroyed (78) 390 Value Destroyed (2767) 2767 Prototype IDs (4) 80 Alien Tech Used (0) 0 Bonus (46) 46 TOTAL SCORE: 6283 Bonus ------- High Alert Combat Kills 46 Cogmind --------- Core Integrity 0/850 Matter 300/300 Energy 54/100 System Corruption 3% Temperature Cool (12) Movement Walking (680) Ox8 Location -6/Factory Parts ------- > --- POWER (3) -------- (None) > --- PROPULSION (4) --- Aluminum Leg > --- UTILITY (4) ------ Huge Storage Unit Advanced Weight Redist. System Hacking Suite > --- WEAPON (4) ------- Compact Ion Cannon > --- INVENTORY (25) --- Aluminum Leg Carbon-fiber Leg Particle Gun Improved EM Pulse Cannon Flak Cannon Peak State ------------ > --- POWER ------------ Deuterium Engine Light Nuclear Core Light Nuclear Core > --- PROPULSION ------- Wheel Compact Wheel Compact Wheel > --- UTILITY ---------- Huge Storage Unit Advanced Weight Redist. System Advanced Sensor Array Transmission Jammer > --- WEAPON ----------- Heavy Laser Gauss Rifle Flak Cannon Mini Assault Cannon > --- INVENTORY -------- Improved Ion Engine Improved Ion Engine Light Treads Light Treads Light Treads Aluminum Leg Aluminum Leg Carbon-fiber Leg Hacking Suite Particle Gun Field Laser Field Laser Improved EM Pulse Cannon Compact Ion Cannon Heavy Assault Rifle Enhanced Autogun Assault Cannon Mini Assault Cannon Shock Maul [Rating: 46] Favorites ----------- Power Light Nuclear Core Engine Deuterium Engine Power Core Light Nuclear Core Propulsion Wheel Treads Light Treads Leg Aluminum Leg Wheel Wheel Utility Huge Storage Unit Device Transmission Jammer Storage Huge Storage Unit Processor Visual Processing Unit Hackware Hacking Suite Protection Weapon Shielding Weapon Enhanced Autogun Energy Gun Pulse Rifle Energy Cannon Compact Ion Cannon Ballistic Gun Enhanced Autogun Ballistic Cannon Flak Cannon Impact Weapon Shock Maul Build | -11 -10 -9 -8 -7 -6 ------- Run | Scr Mat Mat Mat Fac Fac Slots Evolved 8 | . . 2 2 2 2 Power 2 | . . 1 . 1 . Propulsion 2 | . . . 1 . 1 Utility 2 | . . . 1 . 1 Weapon 2 | . . 1 . 1 . Parts Attached 65 | 6 4 7 18 12 18 Power 11 | 1 . 2 2 4 2 Engine 7 | 1 . 2 1 1 2 Core 4 | . . . 1 3 . Reactor . | . . . . . . Propulsion 19 | 2 . 2 9 2 4 Treads 3 | . . . . . 3 Leg 5 | . . 2 2 . 1 Wheel 11 | 2 . . 7 2 . Hover . | . . . . . . Flight . | . . . . . . Utility 12 | 1 3 1 3 1 3 Device 3 | . . . . 1 2 Storage 3 | 1 1 1 . . . Processor 2 | . 1 . 1 . . Hackware 1 | . . . . . 1 Protection 3 | . 1 . 2 . . Artifact . | . . . . . . Weapon 23 | 2 1 2 4 5 9 Energy Gun 9 | 1 1 2 1 1 3 Energy Cannon 1 | . . . . . 1 Ballistic Gun 7 | 1 . . 3 2 1 Ballistic Cannon 5 | . . . . 2 3 Launcher . | . . . . . . Special Weapon . | . . . . . . Impact Weapon 1 | . . . . . 1 Slashing Weapon . | . . . . . . Piercing Weapon . | . . . . . . Special Melee Weapon . | . . . . . . Unidentified Prototypes 4 | . . . 1 . 3 Parts Lost 36 | . . 2 8 7 19 Power 9 | . . 1 2 1 5 Propulsion 12 | . . . 4 2 6 Utility 4 | . . . 1 1 2 Weapon 11 | . . 1 1 3 6 Highest Loss Streak 10 | . . 1 2 4 10 To Critical Strikes . | . . . . . . Average Slot Usage (%) 91 | . 97 98 94 94 73 Engine 11 | . 14 20 13 7 9 Core 4 | . . . 1 11 4 Treads 1 | . . . . . 5 Leg 7 | . . 11 18 . . Wheel 14 | . 28 10 7 22 10 Device 3 | . . . . 4 9 Storage 8 | . 14 11 9 7 6 Processor 7 | . 10 11 9 7 . Protection 3 | . 1 . 8 1 . Energy Gun 9 | . 14 21 11 2 9 Ballistic Gun 14 | . 14 11 15 18 11 Ballistic Cannon 3 | . . . . 8 2 Naked Turns . | . . . . . . Heaviest Build 118 | 11 27 95 106 118 118 Greatest Support 60 | 20 20 20 36 42 60 Greatest Overweight (x) 10 | . 1 4 5 5 10 Average Overweight (x) 2 | . . 2 2 2 4 Largest Inventory Capacity 25 | 8 15 25 25 25 25 Average Capacity 23 | 6 11 23 25 25 25 Most Carried 22 | 5 7 9 22 21 20 Average Carried 12 | 2 5 6 11 17 14 Final Capacity 25 | 8 15 25 25 25 25 Final Carried 19 | 3 6 6 16 19 5 Class Distribution -------------------- 32% | Scavenger-Skirmisher 32% | Scavenger-Tank 14% | Mutant 12% | Skirmisher 5% | Scavenger-Mutant Dominant Class ---------------- Mutant | -10/Materials Skirmisher | -9/Materials Scavenger-Tank | -8/Materials Scavenger-Skirmisher | -7/Factory Mutant | -6/Factory Resources | -11 -10 -9 -8 -7 -6 ----------- Run | Scr Mat Mat Mat Fac Fac Matter Collected 1855 | 206 57 111 346 662 473 Remotely . | . . . . . . Salvage Created 3144 | . 57 429 1347 883 428 Parts 158 | . 3 32 68 48 7 Haulers Intercepted 1 | . . . 1 . . Recyclers Shooed 3 | . 1 . 1 1 . Parts Field Recycled . | . . . . . . Retrieved Matter . | . . . . . . Parts Self-Destructed . | . . . . . . Prevented . | . . . . . . Kills | -11 -10 -9 -8 -7 -6 ------- Run | Scr Mat Mat Mat Fac Fac Combat Hostiles Destroyed 55 | . 1 11 20 15 8 Guns 49 | . 1 11 19 10 8 Cannons 5 | . . . . 5 . Classes Destroyed 12 | . 2 2 3 5 . Worker 7 | . . . 5 2 . Tunneler 1 | . . . . 1 . Hauler 1 | . . . 1 . . Recycler 3 | . . . 2 1 . Operator 1 | . . . . 1 . Watcher 10 | . 1 3 3 3 . Swarmer 4 | . . 4 . . . Grunt 31 | . 1 4 13 7 6 Duelist 2 | . . . . 1 1 Sentry 14 | . . 3 7 4 . Hunter 1 | . . . . 1 . Programmer 3 | . . . . 2 1 Best Kill Streak 6 | . 1 6 6 6 2 Combat Bots Only 4 | . 1 4 4 4 2 Max Kills in Single Turn 3 | . 1 1 3 2 1 Gunslinging . | . . . . . . Exploded . | . . . . . . Melee . | . . . . . . Uniques/NPCs Destroyed . | . . . . . . Combat | -11 -10 -9 -8 -7 -6 -------- Run | Scr Mat Mat Mat Fac Fac Damage Taken 4934 | . 34 511 1122 653 2614 Core 1445 | . . 101 292 186 866 Absorbed by Shields . | . . . . . . Redirected to Shielding 52 | . . . 52 . . Core Remaining (%) 78 | 100 100 74 46 73 . Volleys Fired 159 | . 7 20 61 41 30 Largest 4 | . 2 3 3 4 4 Hottest 229 | . 85 135 148 166 229 Shots Fired 469 | . 14 59 169 155 72 Gun 405 | . 14 59 169 109 54 Cannon 64 | . . . . 46 18 Launcher . | . . . . . . Special . | . . . . . . Kinetic 304 | . 7 20 99 151 27 Thermal 154 | . 7 28 70 4 45 Explosive . | . . . . . . Electromagnetic 11 | . . 11 . . . Robot Hit Streak 25 | . 19 21 25 24 12 Robot Miss Streak 4 | . 3 3 4 4 2 Penetration Max 1 | . . . . 1 1 Secondary Targets 6 | . . 2 4 . . Max Gunslinging Chain 1 | . . 1 1 . . Shots Hit Robots 359 | . 12 45 136 109 57 Core Hits 203 | . 10 38 71 57 27 Critical Kills 2 | . . . 1 1 . Critical Parts Destroyed . | . . . . . . Critical Strikes 10 | . . . 7 3 . Burn 6 | . . . 6 . . Destroy 2 | . . . 1 1 . Blast 2 | . . . . 2 . Melee Attacks . | . . . . . . Impact . | . . . . . . Slashing . | . . . . . . Piercing . | . . . . . . Sneak Attacks . | . . . . . . Combat Hostiles . | . . . . . . Follow-up Attacks . | . . . . . . Damage Inflicted 6308 | . 143 652 2150 2114 1249 Guns 5126 | . 137 605 2146 1392 846 Cannons 1119 | . . . . 717 402 Explosions 47 | . . 47 . . . Melee . | . . . . . . Ramming 16 | . 6 . 4 5 1 Kinetic 3725 | . 37 66 1075 2039 508 Thermal 2371 | . 100 390 1071 70 740 Explosive . | . . . . . . Electromagnetic 196 | . . 196 . . . Impact . | . . . . . . Slashing . | . . . . . . Piercing . | . . . . . . Highest Corruption 3 | . . . . . 3 Average Corruption 2 | . . . . . 2 Corruption Purged . | . . . . . . Corruption Blocked . | . . . . . . Effects 6 | . . . . . 6 Message Errors 1 | . . . . . 1 Heat Flow Errors 2 | . . . . . 2 Energy Discharges 1 | . . . . . 1 Data Loss (minor) 1 | . . . . . 1 Alerts 1 | . . . . . 1 Overload Shots . | . . . . . . Overflow Damage 1 | . . . . 1 . Projectiles 1 | . . . . 1 . Explosions . | . . . . . . Melee . | . . . . . . Knockbacks 23 | . . . . 15 8 Impact . | . . . . . . Kinetic 22 | . . . . 15 7 Secondary 1 | . . . . . 1 Self-Inflicted Damage 29 | . 3 24 . 2 . Shots 1 | . . 1 . . . Rammed 3 | . 1 . . 1 1 Targets Rammed 4 | . 1 . 1 1 1 Kicked 1 | . . . 1 . . Crushed . | . . . . . . Highest Temperature 810 | . 88 303 771 746 810 Average Temperature 207 | . 37 107 219 182 328 Received Heat Transfer 1911 | . 21 192 684 273 741 Effects 115 | . . . 38 25 52 Shutdowns 39 | . . . 13 12 14 Energy Bleed 15 | . . . 5 6 4 Interference 21 | . . . 6 . 15 Matter Decay 10 | . . . 1 3 6 Short Circuit 7 | . . . 2 . 5 Damage (minor) 9 | . . . 4 3 2 Damage (major) 8 | . . . 5 . 3 Damage (core) 6 | . . . 2 1 3 Siege Activations . | . . . . . . Robots Corrupted . | . . . . . . Combat Hostiles . | . . . . . . Parts Fried . | . . . . . . Impact Corruptions . | . . . . . . Robots Melted 1 | . . . 1 . . Combat Hostiles 1 | . . . 1 . . Parts Melted 6 | . . 1 1 . 4 Heat Transferred 4920 | . 125 609 2687 148 1351 Parts Sabotaged . | . . . . . . Parts Stolen . | . . . . . . Parts Stripped . | . . . . . . Power Chain Reactions 1 | . . 1 . . . Missiles Intercepted . | . . . . . . Alert | -11 -10 -9 -8 -7 -6 ------- Run | Scr Mat Mat Mat Fac Fac Peak Influence 510 | . 42 410 318 510 149 Initial 123 | . . 15 75 123 109 Average 184 | . 21 248 139 292 104 Maximum Alert Level 2 | . . 2 1 2 . Low Security (%) 57 | 100 100 31 72 17 100 Level 1 39 | . . 66 27 72 . Level 2 3 | . . 2 . 9 . Level 3 . | . . . . . . Level 4 . | . . . . . . Level 5 . | . . . . . . High Security . | . . . . . . Max Security . | . . . . . . Squads Dispatched 7 | . . 1 1 4 1 Investigation 2 | . . 1 . 1 . Extermination 2 | . . . . 2 . Reinforcement 3 | . . . 1 1 1 Assault . | . . . . . . Garrison . | . . . . . . Intercept . | . . . . . . Searches Triggered . | . . . . . . Construction Impeded . | . . . . . . Haulers Reinforced . | . . . . . . Active Scanning Responses . | . . . . . . Cargo Convoy Interrupts 1 | . . . . . 1 Stealth | -11 -10 -9 -8 -7 -6 --------- Run | Scr Mat Mat Mat Fac Fac Distress Signals 7 | . . 2 3 1 1 Communications Jammed 8 | . . . . 8 . Distress Signals 8 | . . . . 8 . Times Spotted 95 | . 4 19 28 23 21 Peak Tracking Total 9 | . 2 4 6 5 9 Tactical Retreats 4 | . . 1 1 2 . Traps | -11 -10 -9 -8 -7 -6 ------- Run | Scr Mat Mat Mat Fac Fac Traps Triggered 3 | . . 1 . 1 1 Indirectly . | . . . . . . Trap Hack Attempts . | . . . . . . Triggered . | . . . . . . Disarmed . | . . . . . . Reprogrammed . | . . . . . . Reused . | . . . . . . Traps Extracted . | . . . . . . Installed . | . . . . . . Triggered . | . . . . . . Machines | -11 -10 -9 -8 -7 -6 ---------- Run | Scr Mat Mat Mat Fac Fac Machines Disabled 3 | . . . . 2 1 Max in Single Turn 1 | . . . . 1 1 Machines Sabotaged . | . . . . . . Garrisons Compromised . | . . . . . . Overloaded Fab Kills . | . . . . . . Hacking | -11 -10 -9 -8 -7 -6 --------- Run | Scr Mat Mat Mat Fac Fac Machines Accessed 3 | . . 1 1 1 . Terminals 1 | . . . 1 . . Fabricators . | . . . . . . Repair Stations . | . . . . . . Recycling Units 1 | . . 1 . . . Scanalyzers 1 | . . . . 1 . Garrison Access . | . . . . . . Total Hacks 7 | . . 3 1 3 . Successful 6 | . . 2 1 3 . Failed 1 | . . 1 . . . Catastrophic . | . . . . . . Database Lockouts . | . . . . . . Manual . | . . . . . . Terminals 1 | . . . 1 . . Fabricators . | . . . . . . Repair Stations . | . . . . . . Recycling Units 3 | . . 3 . . . Scanalyzers 3 | . . . . 3 . Garrison Access . | . . . . . . Terminal Hacks 1 | . . . 1 . . Emergency Access Points 1 | . . . 1 . . Fabricator Hacks . | . . . . . . Repair Station Hacks . | . . . . . . Recycling Unit Hacks 2 | . . 2 . . . Report Inventory 1 | . . 1 . . . Retrieve Components 1 | . . 1 . . . Scanalyzer 3 | . . . . 3 . Insert Component 2 | . . . . 2 . Analyze 1 | . . . . 1 . Garrison Access Hacks . | . . . . . . Unauthorized Hacks . | . . . . . . Terminals . | . . . . . . Fabricators . | . . . . . . Repair Stations . | . . . . . . Recycling Units . | . . . . . . Scanalyzers . | . . . . . . Garrison Access . | . . . . . . Data Cores Recovered 1 | . . . . 1 . Used . | . . . . . . Hacking Detections 1 | . . . . 1 . Full Trace Events 1 | . . . . 1 . Feedback Events . | . . . . . . Feedback Blocked . | . . . . . . Robot Schematics Acquired . | . . . . . . Robots Built . | . . . . . . Authchips . | . . . . . . Time . | . . . . . . Total Robot Build Rating . | . . . . . . Part Schematics Acquired 1 | . . . . 1 . Parts Built . | . . . . . . Authchips . | . . . . . . Time . | . . . . . . Total Part Build Rating . | . . . . . . Parts Repaired . | . . . . . . Time . | . . . . . . Parts Recycled . | . . . . . . Recycled Matter . | . . . . . . Retrieved Matter . | . . . . . . Retrieved Components 1 | . . 1 . . . Parts Scanalyzed 1 | . . . . 1 . Part Schematics Acquired 1 | . . . . 1 . Parts Damaged 1 | . . . . 1 . Bothacking | -11 -10 -9 -8 -7 -6 ------------ Run | Scr Mat Mat Mat Fac Fac Used RIF Installer . | . . . . . . Robots Hacked . | . . . . . . Non-combat . | . . . . . . Combat . | . . . . . . Robot Hacks Applied . | . . . . . . Relay Couplers Released . | . . . . . . Fabnet Peak Effective % . | . . . . . . Robots Rewired . | . . . . . . Allies Hacked . | . . . . . . Hacks Repelled . | . . . . . . Allies | -11 -10 -9 -8 -7 -6 -------- Run | Scr Mat Mat Mat Fac Fac Total Allies . | . . . . . . Largest Group . | . . . . . . Highest-Rated Group . | . . . . . . Highest-Rated Ally . | . . . . . . Total Orders . | . . . . . . Ally Attacks . | . . . . . . Total Damage . | . . . . . . Kills . | . . . . . . Allies Corrupted . | . . . . . . Allies Melted . | . . . . . . Intel | -11 -10 -9 -8 -7 -6 ------- Run | Scr Mat Mat Mat Fac Fac Robot Analysis Total . | . . . . . . Derelict Logs Recovered . | . . . . . . Drone Launches . | . . . . . . Drone Recoveries . | . . . . . . Exploration | -11 -10 -9 -8 -7 -6 ------------- Run | Scr Mat Mat Mat Fac Fac Turns Passed 3355 | 58 171 411 1066 1028 621 Spaces Moved 1598 | 58 160 153 312 647 268 Core 11 | 11 . . . . . Treads 45 | . . . . . 45 Legs 226 | . . 47 177 . 2 Wheels 1316 | 47 160 106 135 647 221 Hover . | . . . . . . Flight . | . . . . . . Fastest Speed 50 | 50 80 95 116 116 123 Average Speed 162 | 74 87 204 241 131 184 Slowest Speed 750 | 80 95 400 400 155 750 Overloaded Moves . | . . . . . . Propulsion Burnouts . | . . . . . . Robots Hopped . | . . . . . . Cave-ins Triggered . | . . . . . . Exploration Rate (%) 24 | 4 40 24 41 25 13 Regions Visited 5 Branch Regions . Pre-discovered Areas . | . . . . . . Known Exits Taken . | . . . . . . Unknown Exits Taken 5 | 1 1 1 1 1 . Scrap Searched . | . . . . . . Spaces Dug . | . . . . . . Terrain Destroyed 2 | . . 2 . . . Melee . | . . . . . . Projectile . | . . . . . . AOE 2 | . . 2 . . . Terrain Rammed . | . . . . . . Walls Destroyed . | . . . . . . Machines Disabled . | . . . . . . Actions | -11 -10 -9 -8 -7 -6 --------- Run | Scr Mat Mat Mat Fac Fac Total 2062 | 72 177 214 503 754 342 Wait 134 | . . 25 74 24 11 Move 1593 | 57 159 152 311 646 268 Hop . | . . . . . . Pick Up 69 | 9 5 7 29 17 2 Fast Attach . | . . . . . . Attach 54 | 6 1 6 15 10 16 Detach 1 | . . . . . 1 Swap 11 | . 3 1 3 2 2 Drop 21 | . 1 3 9 5 3 Fire 159 | . 7 20 61 41 30 Melee . | . . . . . . Ram 3 | . 1 . . 1 1 Kick 1 | . . . 1 . . Crush . | . . . . . . Escape Stasis 16 | . . . . 8 8 Rewire . | . . . . . . Trap . | . . . . . . Miscellaneous . | . . . . . . Route ------- -11/Scrapyard -10/Materials -9/Materials -8/Materials -7/Factory -6/Factory History --------- Turn | Location | Event 10 | -11/Scrapyard | Discovered new exit (range 16) 59 | -11/Scrapyard | Entered Materials 218 | -10/Materials | Discovered new exit (range 10) 230 | -10/Materials | Entered another Materials area 230 | -9/Materials | Evolved 2 slots: Power x1, Weapon x1 538 | -9/Materials | Build established: Skirmisher 617 | -9/Materials | Discovered new exit (range 8) 641 | -9/Materials | Entered another Materials area 641 | -8/Materials | Evolved 2 slots: Propulsion x1, Utility x1 1246 | -8/Materials | Build established: Scavenger-Tank 1625 | -8/Materials | Core integrity fell below 50% 1688 | -8/Materials | Discovered new exit (range 16) 1707 | -8/Materials | Entered Factory 1707 | -7/Factory | Evolved 2 slots: Power x1, Weapon x1 2157 | -7/Factory | Lost 4 parts (1p1n2w) 2431 | -7/Factory | Build established: Scavenger-Skirmisher 2721 | -7/Factory | Discovered new exit (range 11) 2735 | -7/Factory | Entered another Factory area 2735 | -6/Factory | Evolved 2 slots: Propulsion x1, Utility x1 2980 | -6/Factory | Lost 7 parts (2p2n2u1w) 3312 | -6/Factory | Core integrity fell below 50% 3331 | -6/Factory | Spotted B-75 Beast 3340 | -6/Factory | Cargo convoy interrupted 3353 | -6/Factory | Core integrity fell below 20% 3356 | -6/Factory | Destroyed by X-67 Chaingunner with Heavy Machine Gun Last Messages --------------- 03348_ U-05 Engineer lays Concrete. 03350_ Broken Lgt. Treads destroyed. 03350_ Field Laser destroyed. 03350_ U-05 Engineer lays Concrete. 03350_ Penetrated by Slug. 03350_ U-05 Engineer lays Concrete. 03351_ K-01 Serf collects debris. 03351_ U-05 Engineer lays Concrete. 03352_ K-01 Serf collects debris. 03353_ U-05 Engineer lays Concrete. 03353_ U-05 Engineer builds a Wall. 03353_ U-05 Engineer lays Concrete. 03353_ Penetrated by Slug. 03354_ U-05 Engineer lays Concrete. 03354_ K-01 Serf collects debris. 03355_ Slug penetrates X-67 Chaingunner. 03355_ U-05 Engineer lays Concrete. 03356_ K-01 Serf collects debris. 03356_ U-05 Engineer lays Concrete. 03356_ Assault Cannon destroyed. Map ----- +----------------------------------------------------+ | ?????????????????????????????????????????????????? | | ?????????????????????????????????????????????????? | | ?????????????????????????????????????????????????? | | ?????????????????????????????????????????????????? | | ?????????????????????????????????????????????????? | | ?????????????????????????????????????????????????? | | ?????????????????????????????????????????????????? | | ?????????????????????????????????????????????????? | | ?????????????????????????????????????????????????? | | ?????????????????????????????????????????????????? | | ?????????????????????????????????????????????????? | | ????????????????????????????""" +? ??????????????? | | ????????????????????????????""" # ?????????????? | | ????????????????????????????%*u # B ???????????? | | ?????????????????????????###=#;;; BB ???????????? | | ?????????????????????????# #??????????? | | ?????????????????????????# #??????????? | | ?????????????????????????# #??????????? | | ?????????????????????????# #??????????? | | ?????????????????????????"! #??????????? | | ?????????????????????????#!! i #??????????? | | ???????????#??############!! h % #??????????? | | ???????????# """"" xx k#??????????? | | ???????????# ""T"" % =% u #??????????? | | ???????????# ^ x + ???????? | | ???????????+ ^ %%@ k w#??????????? | | ???????????# ! u #??????????? | | ???????????# ^ ^ %! ##;;##### #??????????? | | ???????????# ""% #/ A ??? #??????????? | | ???????????# """ # """"?# #??????????? | | ???????????# """ # """" + #??????????? | | ???????????# ^ u # """" # #??????????? | | ???????????# """ # """" # #??????????? | | ???????????# """o ! #! ???# #??????????? | | ???????????# """ ### ""???# #??????????? | | ???????????# #?# "????# ############ | | ?????? #?# "????# | | ?????? #### #?# ?????# | | ??????? ! ???# #?? ?????# | | ??????? *% ????# #??###+#??# | | ???????? ! ?????# #????# #??# | | ???????? ####??????# #????# #??# " | | ????????????????????# #??### #### " | | ????????????????????# #??# " | | ????????????????????# #??# " | | ?????????????#??????# #??# " | | ????????????##/######+#### " | | ????????????# + " | | ????????????# # #####+########## " | | ????????????#= =# #?? "???????# " | +----------------------------------------------------+ Best States ------------- Heat Dissipation 37 Energy Generation 32 Energy Capacity 605 Matter Stores 300 Matter Capacity 300 Sight Range 20 Robot Scan Range 16 Terrain Scan Density 10 Jamming Range 12 Additional Mass Support 9 Armor Coverage 150 Resistance: KI 20 Resistance: TH 20 Resistance: EX 20 Resistance: EM 20 Resistance: I 20 Resistance: S 20 Resistance: P 20 Weapon Shielding 33 Evasion (%) 50 Recoil Reduction 3 Offensive Hacking 20 Item Schematics ----------------- Pulse Rifle | -7/Factory | Scanalyzed Robot Schematics ------------------ None Fabricated ------------ Nothing Alien Tech Used ----------------- None Achievements -------------- None Challenges ------------ None Game ------ Seed MediumBehemothKit Manual? 0 Play Time 00:36:43 Cumulative 16.5 hours Start 2023.02.06 @ 14:17:08 End 2023.02.06 @ 16:33:29 Sessions 1 Manual Loads 0 Difficulty Adventurer Special Mode None Game No. 34 Rogue 9 Adventurer 25 Explorer 0 Win Type - Total 0 Types 0/0/0/0/0/0/0/0/0 Lore% 20 Gallery% 23 Achievement% 17 Wizard Run 0 Options --------- ASCII 0 Keyboard 0 Movement Mouse Keybinds 0 Fullscreen 1 Font 12/Terminus Map View 83x54 Tactical HUD 1 Map Filters NONE Filters NONE Steam 0 RUN: a2d74952-7a89-4e26-bf07-fea71070dc18